[Event "Grand Prix Romania 1st Stage 2024"]
[Site "Bucuresti"]
[Date "2024.03.23"]
[Round "1.38"]
[White "Ionescu, Catalin"]
[Black "Efroimski, Marsel"]
[Result "0-1"]
[ECO "B23"]
[WhiteElo "1707"]
[BlackElo "2467"]
[Annotator "TA"]
[PlyCount "80"]
[EventDate "2024.03.20"]
[EventCountry "ROU"]
[SourceTitle "playchess.com"]
[Source "ChessBase"]
[SourceQuality "1"]
[TimeControl "900+5"]

{[%evp 11,80,-12,-8,-10,-3,-8,-13,-10,20,-54,-57,-54,-40,-43,-40,-181,-180,-179,-173,-176,-177,-205,-206,-191,-201,-199,-198,-198,-208,-187,-180,-181,-181,-189,-169,-197,-187,-260,-256,-258,-263,-263,-276,-242,-267,-265,-268,-308,-317,-353,-350,-428,-416,-491,-416,-599,-595,-652,-624,-712,-691,-791,-785,-2268,-2185,-1875,-1147,-2549,-2394,-3148,-2976]} 1. e4 {[%emt 0:00:23]} c5 {[%emt 0:00:11]} 2. Nc3 {[%emt 0:00:24]} Nc6 {[%emt 0:00:02]} 3. f4 {[%emt 0:00:12]} g6 {[%emt 0:00:03]} 4. Nf3 {[%emt 0:00:25]} Bg7 {[%emt 0:00:01]} 5. Bb5 {[%emt 0:00:06]} Nd4 {[%emt 0:00:06]} 6. O-O {[%emt 0:00:26]} e6 {[%emt 0:01:10]} 7. d3 {[%emt 0:01:20]} a6 {[%emt 0:00:20]} 8. Ba4 {[%emt 0:00:02]} b5 {[%emt 0:00:01]} 9. Bb3 {[%emt 0:00:01] The position is equal.} Ne7 {[%emt 0:00:23]} 10. Ne2 {[%emt 0:02:23]} (10. e5 $11) 10... Nxf3+ $15 {[%emt 0:00:16]} 11. Rxf3 {[%emt 0:00:05]} d5 $36 {[%emt 0:00:15][%mdl 2048] [#] ...dxe4 is the strong threat. Black has some pressure.} 12. c3 {[%emt 0:00:32]} Bb7 {[%emt 0:00:33]} 13. Bc2 {[%emt 0:00:36] White does not recover from this.} (13. e5 $15) 13... dxe4 $19 {[%emt 0:00:04]} 14. dxe4 {[%emt 0:00:03]} Qxd1+ {[%emt 0:00:03]} 15. Bxd1 {[%emt 0:00:05]} Bxe4 {[%emt 0:00:02]} 16. Rf1 {[%emt 0:01:35]} O-O {[%emt 0:00:06]} 17. Ng3 {[%emt 0:00:20]} Bd3 {[%emt 0:00:40]} 18. Be2 {[%emt 0:00:03]} Bxe2 {[%emt 0:00:11]} 19. Nxe2 {[%emt 0:00:02]} Nd5 {[%emt 0:00:13]} 20. Bd2 {[%emt 0:01:09]} Rab8 {[%emt 0:00:14]} 21. Rab1 {[%emt 0:00:29]} Rfd8 {[%emt 0:00:08]} 22. Rfd1 {[%emt 0:01:47]} Rd7 {[%emt 0:00:35]} 23. Be1 {[%emt 0:00:12]} Rbd8 {[%emt 0:00:02][%cal Od5f4]} 24. Bf2 {[%emt 0:00:09] [#]} (24. Bh4 {keeps fighting.} f6 25. Re1) 24... Nxf4 $1 {[%emt 0:00:07][%mdl 512]} 25. Rxd7 {[%emt 0:00:18]} Nxe2+ {[%emt 0:00:02]} 26. Kf1 {[%emt 0:00:02]} Rxd7 {[%emt 0:00:22]} 27. Kxe2 {[%emt 0:00:02][%mdl 4096] Endgame. KRB-KRB} c4 {[%emt 0:00:08]} 28. Be3 {[%emt 0:00:41]} f5 {[%emt 0:00:06]} 29. Rf1 {[%emt 0:00:06]} e5 {[%emt 0:00:03]} 30. g3 {[%emt 0:00:01]} Kf7 {[%emt 0:00:05]} 31. b3 {[%emt 0:00:21]} e4 {[%emt 0:00:15]} 32. Bd2 {[%emt 0:00:03]} Rc7 {[%emt 0:00:08] White must now prevent ...cxb3.} 33. g4 {[%emt 0:00:14]} (33. Rd1 $142) 33... Ke6 {[%emt 0:00:04] Black is clearly winning.} 34. gxf5+ gxf5 {[%emt 0:00:01]} 35. Rc1 {[%emt 0:00:18]} Be5 {[%emt 0:00:04]} 36. h3 {[%emt 0:00:09]} Rg7 {[%emt 0:00:11]} 37. bxc4 {[%emt 0:00:25]} Rg2+ {[%emt 0:00:04]} 38. Kd1 {[%emt 0:00:08]} Rg1+ {[%emt 0:00:02]} 39. Kc2 {[%emt 0:00:01]} Rxc1+ {[%emt 0:00:03]} 40. Bxc1 {[%emt 0:00:03]} bxc4 {[%emt 0:00:02] Weighted Error Value: White=0.89/Black=0.20 (precise) .  Mistake:       	White=4     	---        Inaccurate:     	---       	Black=1      OK:         	White=8     	Black=18     Best:        	White=3     	Black=2} 0-1

[Event "Grand Prix Romania 1st Stage 2024"]
[Site "Bucuresti"]
[Date "2024.03.23"]
[Round "1.39"]
[White "Manolache, Marius"]
[Black "Armeanu, Ninel-Claudiu"]
[Result "1-0"]
[ECO "D45"]
[WhiteElo "2387"]
[BlackElo "1716"]
[Annotator "RC"]
[PlyCount "57"]
[EventDate "2024.03.20"]
[EventCountry "ROU"]
[SourceTitle "playchess.com"]
[Source "ChessBase"]
[SourceQuality "1"]
[TimeControl "900+5"]

1. d4 {[%emt 0:00:05]} d5 {[%emt 0:00:10]} 2. Nf3 {[%emt 0:00:06]} Nf6 {[%emt 0:00:08]} 3. c4 {[%emt 0:00:03]} e6 {[%emt 0:00:21]} 4. Nc3 {[%emt 0:00:06]} c6 {[%emt 0:01:16]} 5. e3 {[%emt 0:00:06]} Be7 {[%emt 0:00:22]} 6. Qc2 {[%emt 0:00:14]} Na6 {[%emt 0:01:17]} 7. a3 {[%emt 0:00:06]} Nc7 {[%emt 0:00:07]} 8. e4 {[%emt 0:00:26]} dxe4 {[%emt 0:00:13]} 9. Nxe4 {[%emt 0:00:02]} O-O {[%emt 0:01:12]} 10. h4 {[%emt 0:00:49]} h6 {[%emt 0:00:46]} 11. Nxf6+ {[%emt 0:01:02]} Bxf6 {[%emt 0:00:02]} 12. Be3 {[%emt 0:00:12]} b5 {[%emt 0:00:10]} 13. Ng5 {[%emt 0:02:33]} g6 {[%emt 0:00:40]} 14. Nf3 {[%emt 0:00:41]} h5 {[%emt 0:00:42]} 15. Bd3 {[%emt 0:00:44]} Kg7 {[%emt 0:00:08]} 16. Qd2 {[%emt 0:03:15]} Rh8 {[%emt 0:00:17]} 17. Rc1 {[%emt 0:00:53]} bxc4 {[%emt 0:01:08]} 18. Rxc4 {[%emt 0:00:05]} Bb7 {[%emt 0:00:13]} 19. O-O {[%emt 0:00:19]} Nd5 {[%emt 0:00:02]} 20. Bg5 {[%emt 0:00:23]} Rc8 {[%emt 0:01:06]} 21. Re1 {[%emt 0:00:05]} Bxg5 {[%emt 0:02:39]} 22. hxg5 {[%emt 0:00:02]} Qd6 {[%emt 0:00:06]} 23. Rc5 {[%emt 0:00:12]} h4 {[%emt 0:00:45]} 24. Be4 {[%emt 0:00:02]} h3 {[%emt 0:00:24]} 25. g3 {[%emt 0:00:02]} Rh5 {[%emt 0:00:34]} 26. Kh2 {[%emt 0:00:02]} Rd8 {[%emt 0:00:42]} 27. Bxd5 {[%emt 0:00:06]} cxd5 {[%emt 0:00:06]} 28. Rec1 {[%emt 0:00:15]} Rh4 {[%emt 0:00:13]} 29. Nxh4 {[%emt 0:00:06]} 1-0

[Event "Grand Prix Romania 1st Stage 2024"]
[Site "Bucuresti"]
[Date "2024.03.23"]
[Round "2.1"]
[White "Capata, Ion"]
[Black "Motylev, Alexander"]
[Result "0-1"]
[ECO "B22"]
[WhiteElo "2038"]
[BlackElo "2611"]
[Annotator "RC"]
[PlyCount "98"]
[EventDate "2024.03.20"]
[EventType "swiss"]
[EventCountry "ROU"]
[SourceTitle "playchess.com"]
[Source "ChessBase"]
[SourceQuality "1"]
[TimeControl "900+5"]

1. e4 {[%emt 0:00:07]} c5 {[%emt 0:00:14]} 2. c3 {[%emt 0:00:02]} d5 {[%emt 0:00:35]} 3. exd5 {[%emt 0:00:01]} Qxd5 {[%emt 0:00:01]} 4. Nf3 {[%emt 0:00:05]} Nf6 {[%emt 0:00:02]} 5. Na3 {[%emt 0:00:18]} Nc6 {[%emt 0:00:14]} 6. d4 {[%emt 0:00:24]} e6 {[%emt 0:00:32]} 7. Be3 {[%emt 0:00:34]} cxd4 {[%emt 0:01:00]} 8. Nb5 {[%emt 0:00:02]} Qd8 {[%emt 0:01:05]} 9. Nbxd4 {[%emt 0:00:11]} Nd5 {[%emt 0:00:11]} 10. Nxc6 {[%emt 0:00:56]} bxc6 {[%emt 0:00:03]} 11. Bd4 {[%emt 0:00:41]} f6 {[%emt 0:02:21]} 12. Bc4 {[%emt 0:01:57]} c5 {[%emt 0:01:21]} 13. Bb5+ {[%emt 0:00:57]} Kf7 {[%emt 0:00:18]} 14. Be3 {[%emt 0:00:33]} Rb8 {[%emt 0:01:25]} 15. c4 {[%emt 0:01:38]} Be7 {[%emt 0:00:41]} 16. Bd2 {[%emt 0:01:50]} Nc7 {[%emt 0:02:06]} 17. Ba4 {[%emt 0:01:15]} Qd3 {[%emt 0:00:22]} 18. Bb3 {[%emt 0:00:39]} Na6 {[%emt 0:00:29]} 19. Qe2 {[%emt 0:01:05]} Nb4 {[%emt 0:00:09]} 20. Bxb4 {[%emt 0:00:20]} Qxe2+ {[%emt 0:00:02]} 21. Kxe2 {[%emt 0:00:02]} Rxb4 {[%emt 0:00:22]} 22. Rhd1 {[%emt 0:00:21]} a5 {[%emt 0:00:06]} 23. Rd2 {[%emt 0:00:43]} Ba6 {[%emt 0:00:06]} 24. Rc1 {[%emt 0:01:20]} a4 {[%emt 0:00:34]} 25. Bd1 {[%emt 0:00:03]} Bxc4+ {[%emt 0:00:08]} 26. Ke1 {[%emt 0:00:05]} Bxa2 {[%emt 0:00:26]} 27. Rd7 {[%emt 0:00:01]} Rc8 {[%emt 0:01:53]} 28. Ra7 {[%emt 0:00:07]} Rxb2 {[%emt 0:00:10]} 29. Bxa4 {[%emt 0:00:11]} Bd5 {[%emt 0:00:02]} 30. Bd7 {[%emt 0:00:34]} Ra8 {[%emt 0:00:11]} 31. Rxa8 {[%emt 0:00:10]} Bxa8 {[%emt 0:00:02]} 32. Nd2 {[%emt 0:00:06]} Bxg2 {[%emt 0:00:07]} 33. Nc4 {[%emt 0:00:03]} Ra2 {[%emt 0:00:09]} 34. Rb1 {[%emt 0:00:14]} Bd5 {[%emt 0:00:04]} 35. Ne3 {[%emt 0:00:05]} Ra7 {[%emt 0:00:13]} 36. Bb5 {[%emt 0:00:10]} Be4 {[%emt 0:00:03]} 37. Rc1 {[%emt 0:00:03]} f5 {[%emt 0:00:06]} 38. Bc4 {[%emt 0:00:04]} Kf6 {[%emt 0:00:01]} 39. Ke2 {[%emt 0:00:05]} Bd6 {[%emt 0:00:05]} 40. f3 {[%emt 0:00:01]} Bc6 {[%emt 0:00:01]} 41. h4 {[%emt 0:00:07]} Bf4 {[%emt 0:00:02]} 42. Rc3 {[%emt 0:00:07]} Ra4 {[%emt 0:00:05]} 43. Ng2 {[%emt 0:00:12]} Be5 {[%emt 0:00:03]} 44. Rc2 {[%emt 0:00:02]} Rxc4 {[%emt 0:00:06]} 45. Rxc4 {[%emt 0:00:02]} Bb5 {[%emt 0:00:01]} 46. Kd3 {[%emt 0:00:03]} Bd4 {[%emt 0:00:01]} 47. Ne1 {[%emt 0:00:10]} e5 {[%emt 0:00:02]} 48. Nc2 {[%emt 0:00:11]} e4+ {[%emt 0:00:07]} 49. fxe4 {[%emt 0:00:02]} fxe4+ {[%emt 0:00:43]} 0-1

[Event "Grand Prix Romania 1st Stage 2024"]
[Site "Bucuresti"]
[Date "2024.03.23"]
[Round "2.2"]
[White "Ponomariov, Ruslan"]
[Black "Puskas, Andras"]
[Result "1-0"]
[ECO "D12"]
[WhiteElo "2646"]
[BlackElo "2097"]
[Annotator "TA"]
[PlyCount "99"]
[EventDate "2024.03.20"]
[EventType "swiss"]
[EventCountry "ROU"]
[SourceTitle "playchess.com"]
[Source "ChessBase"]
[SourceQuality "1"]
[TimeControl "900+5"]

{[%evp 11,99,27,30,11,46,3,32,30,39,33,33,29,21,35,26,0,0,0,0,0,0,0,0,0,0,0,0,0,0,0,0,0,0,-15,-20,-14,0,0,0,0,57,3,47,39,101,57,100,81,128,95,98,100,90,90,102,109,139,148,182,193,181,178,220,255,257,285,718,688,1086,1060,1155,1106,1204,1222,1439,1289,1449,1375,1391,1310,2219,1581,6087,5109,2330,2101,12841,11890,6127,2308]} 1. d4 {[%emt 0:00:03]} d5 {[%emt 0:00:10]} 2. c4 {[%emt 0:00:03]} c6 {[%emt 0:00:06]} 3. Nf3 {[%emt 0:00:08]} Nf6 {[%emt 0:00:04]} 4. e3 {[%emt 0:00:03]} Bf5 {[%emt 0:00:22]} 5. Nc3 {[%emt 0:00:04]} e6 {[%emt 0:00:05]} 6. Nh4 {[%emt 0:00:03]} Bg6 {[%emt 0:00:36]} 7. Be2 {[%emt 0:01:00]} Nbd7 {[%emt 0:00:48]} 8. g3 {[%emt 0:00:24]} Bb4 {[%emt 0:00:41]} 9. O-O {[%emt 0:00:14] Weiß steht etwas besser.} Be7 {[%emt 0:01:24]} 10. Nxg6 {[%emt 0:02:09]} hxg6 {[%emt 0:00:11]} 11. Qc2 {[%emt 0:00:10]} dxc4 {[%emt 0:00:39]} 12. Bxc4 {[%emt 0:00:06]} Qa5 {[%emt 0:00:02]} 13. Be2 {[%emt 0:01:19] Pariert Ng4.} Qf5 {[%emt 0:01:35]} 14. Qxf5 {[%emt 0:00:08]} gxf5 {[%emt 0:00:03]} 15. Kg2 {[%emt 0:00:15]} g5 {[%emt 0:00:39]} 16. h3 {[%emt 0:01:22]} O-O-O {[%emt 0:00:31]} 17. Bd2 {[%emt 0:00:09]} Rdg8 {[%emt 0:00:06]} 18. a3 {[%emt 0:00:24]} Bd6 {[%emt 0:01:13]} 19. Rac1 {[%emt 0:01:15]} Kd8 {[%emt 0:00:08]} 20. Rc2 {[%emt 0:00:26]} Ne4 {[%emt 0:00:45]} 21. Be1 {[%emt 0:00:23]} Ndf6 {[%emt 0:00:08]} 22. f3 {[%emt 0:00:15]} Nxc3 {[%emt 0:00:18]} 23. bxc3 {[%emt 0:00:01][%cal Oe3e4]} Nd5 {[%emt 0:00:52]} (23... Bxa3 $6 24. Ra2 Bd6 25. Rxa7 $16) 24. Bd2 {[%emt 0:00:15]} f4 {[%emt 0:00:49]} (24... Bxa3 $2 25. Ra1 Bd6 26. Rxa7 $18) 25. e4 {[%emt 0:00:08]} Nb6 {[%emt 0:00:18]} (25... Ne7 $11) 26. g4 {[%emt 0:01:02]} ({Besser ist} 26. Rb1 $14) 26... Rf8 {[%emt 0:00:45][%cal Oh8h6]} (26... Bxa3 27. c4 c5 28. Ra1 $18) 27. a4 {[%emt 0:00:22][%cal Ba3a4,Ba4a5][%mdl 32]} e5 {[%emt 0:01:04] Damit ist Schwarz auf der Verliererstraße.} (27... Nxa4 $6 28. Ra1 Nb6 29. Rxa7 $16) (27... Rh6 $14) 28. a5 {[%emt 0:00:11]} Nc8 {[%emt 0:00:23]} 29. Rb1 {[%emt 0:00:06]} Kc7 {[%emt 0:00:08]} (29... b6 $142) 30. Rcb2 {[%emt 0:00:05] Weiß steht aktiver.} b6 {[%emt 0:00:01]} 31. axb6+ {[%emt 0:00:03]} axb6 {[%emt 0:00:10]} 32. Be1 $36 {[%emt 0:00:04][%mdl 2048] Weiss hat starke Initiative.} Rh6 {[%emt 0:00:15]} 33. Bf2 {[%emt 0:00:22]} exd4 {[%emt 0:00:02]} 34. cxd4 {[%emt 0:00:05][%cal Bc3d4,Bd4d5][%mdl 32]} Rfh8 {[%emt 0:00:02] [#]} 35. h4 {[%emt 0:00:23][%mdl 512]} gxh4 {[%emt 0:00:23]} 36. Kh3 {[%emt 0:00:01]} f6 {[%emt 0:00:22][%cal Bf7f6,Bf6f5][%mdl 32]} 37. Ba6 {[%emt 0:01:19]} b5 {[%emt 0:00:01][%cal Bb6b5,Bb5b4][%mdl 32]} 38. d5 {[%emt 0:00:06]} Ba3 $2 {[%emt 0:00:01]} (38... b4 39. Be1 cxd5 (39... c5 $2 40. Rc2 $18) 40. exd5 (40. Bxb4 Bxb4 41. Rc1+ Kd7 $18) 40... f5 41. Rc2+ (41. gxf5 Ne7 $18) (41. Bxb4 fxg4+ 42. fxg4 Bxb4 $16) 41... Kd7 42. gxf5 (42. Bxb4 Bxb4 43. Bb5+ Kd6 $16) 42... Rf6 43. Bb5+ (43. Bxb4 Bxb4 44. Bb5+ Kd6 $14) 43... Ke7 44. Re2+ (44. Bxb4 Bxb4 45. Rxb4 Rd8 $18) 44... Kd8) 39. Rc2 $18 {[%emt 0:00:12][%csl LRb5,LRc6] Weiß steht klar auf Gewinn.} b4 {[%emt 0:00:28]} 40. Rxc6+ {[%emt 0:00:05] Schwarz ist schwach auf den weissen Feldern} Kd7 {[%emt 0:00:03]} 41. Bc5 {[%emt 0:00:21]} f5 {[%emt 0:00:04]} 42. Bxc8+ {[%emt 0:00:31]} Rxc8 {[%emt 0:00:01]} 43. Rxh6 {[%emt 0:00:02] [#] Weiss droht Rh7+ und Matt.} fxg4+ {[%emt 0:00:01]} 44. Kxg4 {[%emt 0:00:01]} Rxc5 {[%emt 0:00:01]} 45. Rxh4 {[%emt 0:00:11] KRR-KRB} Rc3 {[%emt 0:00:16]} 46. Rh6 {[%emt 0:00:21][%cal Oe4e5] Zielt auf e5! ab.} b3 {[%emt 0:00:04]} 47. Rb6 {[%emt 0:00:02]} b2 {[%emt 0:00:06]} 48. R1xb2 {[%emt 0:00:03]} Bxb2 49. Rxb2 {[%emt 0:00:01][%cal Oe4e5] jetzt e5! und aus.} Ra3 {[%emt 0:00:23]} 50. Kxf4 {[%emt 0:00:03] Gewichteter Fehlerwert: Weiß=0.10 (sehr präzise) /Schwarz=0.18 (sehr präzise) .  Fehler:       	Weiß=1     	Schwarz=4     Ungenau:       	Weiß=3     	Schwarz=5     OK:         	Weiß=15    	Schwarz=10    Bester:       	---       	Schwarz=1} (50. Rb5 $142 Ra4 51. Kxf4) 1-0

[Event "Grand Prix Romania 1st Stage 2024"]
[Site "Bucuresti"]
[Date "2024.03.23"]
[Round "2.3"]
[White "Barbu, Simon-Alexandru"]
[Black "Sarana, Alexey"]
[Result "0-1"]
[ECO "B23"]
[WhiteElo "1998"]
[BlackElo "2699"]
[Annotator "TA"]
[PlyCount "78"]
[EventDate "2024.03.20"]
[EventType "swiss"]
[EventCountry "ROU"]
[SourceTitle "playchess.com"]
[Source "ChessBase"]
[SourceQuality "1"]
[TimeControl "900+5"]

{[%evp 9,78,3,1,9,24,0,-4,-8,-16,-17,0,-4,0,-20,19,16,11,0,-6,-6,0,-45,-43,-48,-52,-42,-38,-42,0,0,0,0,0,0,0,-10,-22,-5,49,-44,0,0,22,11,100,0,0,-46,0,0,0,0,82,73,105,-304,-305,-301,-285,-506,-491,-499,-484,-912,-897,-29988,-29989,-29991,-29990,-3265,-470]} 1. e4 {[%emt 0:00:01]} c5 {[%emt 0:00:03]} 2. Nc3 {[%emt 0:00:02]} e6 {[%emt 0:00:04]} 3. f4 {[%emt 0:00:02]} d5 {[%emt 0:00:02]} 4. Nf3 {[%emt 0:00:01]} d4 {[%emt 0:00:12]} 5. Bb5+ {[%emt 0:00:02]} Nd7 {[%emt 0:00:05]} 6. Ne2 {[%emt 0:00:59]} Ngf6 {[%emt 0:00:04]} 7. Bxd7+ {[%emt 0:00:02]} Nxd7 {[%emt 0:00:33]} 8. d3 {[%emt 0:00:05] The position is equal.} b6 {[%emt 0:00:01]} 9. O-O {[%emt 0:00:15]} Bb7 {[%emt 0:00:02]} 10. Qe1 {[%emt 0:01:45]} Bd6 {[%emt 0:00:12]} 11. Qg3 {[%emt 0:00:17]} g6 {[%emt 0:00:08]} 12. Qh3 {[%emt 0:00:29]} f5 {[%emt 0:00:21]} 13. c3 {[%emt 0:03:16]} dxc3 $1 {[%emt 0:00:23]} 14. bxc3 {[%emt 0:00:02]} Qe7 {[%emt 0:00:41]} 15. Ng5 {[%emt 0:04:42]} O-O-O {[%emt 0:00:25]} 16. e5 $1 {[%emt 0:00:32]} Bc7 {[%emt 0:00:02]} 17. d4 {[%emt 0:00:09]} h6 {[%emt 0:00:12]} 18. Nf3 {[%emt 0:00:04]} g5 {[%emt 0:00:01]} 19. fxg5 {[%emt 0:00:31]} hxg5 {[%emt 0:01:35]} 20. Bxg5 {[%emt 0:00:01]} Qf7 {[%emt 0:00:52]} 21. Qg3 {[%emt 0:00:18]} Rdg8 {[%emt 0:00:02][%cal Od7f6]} 22. Qf4 {[%emt 0:00:26]} Qh5 {[%emt 0:02:42] [#] aiming for ...Bxf3.} 23. h4 {[%emt 0:01:12]} Bd8 {[%emt 0:00:04]} (23... Nf8 $11) 24. Ng3 {[%emt 0:00:30]} ({White should try} 24. Kf2 $14) 24... Qg6 {[%emt 0:00:12]} ({Black should play} 24... Qh7 $15) 25. Bxd8 $11 {[%emt 0:00:33]} Kxd8 {[%emt 0:00:03]} 26. Ng5 {[%emt 0:00:01]} Bd5 {[%emt 0:01:32]} (26... Kc8 $11 {keeps the balance.}) 27. Rad1 {[%emt 0:00:05]} (27. Rf2 $16) 27... c4 $1 {[%emt 0:00:01]} 28. a4 {[%emt 0:00:18]} (28. Rb1 $11 {is more appropriate.}) 28... Ke7 {[%emt 0:00:03]} (28... Kc8 $15) 29. Kf2 {[%emt 0:00:07]} Nf8 {[%emt 0:00:40] Threatens to win with ...Qh6. Chess con chili.} 30. Rh1 {[%emt 0:00:12][%cal Oa4a5]} Qe8 {[%emt 0:00:32] [#]} (30... Kd7 $11 {remains equal.}) 31. a5 $1 $16 {[%emt 0:00:01] Hoping for axb6.} b5 {[%emt 0:00:33] ...Ng6 is the strong threat.} (31... Kd7 32. axb6) 32. Nf3 $2 {[%emt 0:00:13][%mdl 8192] Excellent horsemanship. White does not recover from this.} (32. Qc1 $16 {keeps the pressure on. And now Qa3+ would win.} Kd8 33. Qa3) 32... Rg4 $19 {[%emt 0:00:15]} 33. Qc1 {[%emt 0:00:06]} Qg6 {[%emt 0:00:03]} 34. Qa3+ $2 {[%emt 0:00:15]} (34. h5 {was forced.} Qg8 35. Nxf5+ exf5 36. Qa3+ Ke8 37. Rdg1) 34... Ke8 {[%emt 0:00:02]} 35. h5 {[%emt 0:00:16]} Qg7 {[%emt 0:00:02]} 36. Rh3 {[%emt 0:00:03]} (36. Qd6 $142 Rxg3 37. Qb8+ Ke7 38. Qd6+ Kf7 39. Qc7+ Kg8 40. Qxg7+ Rxg7 41. h6) 36... f4 {[%emt 0:00:03]} 37. Ne2 {[%emt 0:00:06]} Rxg2+ {[%emt 0:00:03]} 38. Kf1 {[%emt 0:00:00]} Rxe2 {[%emt 0:00:06]} 39. Kxe2 {[%emt 0:00:02]} Qg2+ {[%emt 0:00:01] Weighted Error Value: White=0.84/Black=0.15 (very precise) .  Loses game:     	White=1     	---        Mistake:       	White=5     	Black=5      Inaccurate:     	White=3     	Black=3      OK:         	White=11    	Black=10     Best:        	White=1     	Black=3      Strong:       	White=1     	Black=2} 0-1

[Event "Grand Prix Romania 1st Stage 2024"]
[Site "Bucuresti"]
[Date "2024.03.23"]
[Round "2.4"]
[White "Deac, Bogdan-Daniel"]
[Black "Lehaci, Miruna-Daria"]
[Result "1-0"]
[ECO "D27"]
[WhiteElo "2690"]
[BlackElo "2247"]
[Annotator "TA"]
[PlyCount "62"]
[EventDate "2024.03.20"]
[EventType "swiss"]
[EventCountry "ROU"]
[SourceTitle "playchess.com"]
[Source "ChessBase"]
[SourceQuality "1"]
[TimeControl "900+5"]

{[%evp 15,62,31,25,14,22,19,32,24,22,16,33,29,52,22,28,43,137,128,164,130,171,178,176,171,179,183,171,185,189,133,270,270,276,275,269,237,231,209,214,171,192,196,184,176,190,140,181,163,186]} 1. d4 {[%emt 0:00:03]} e6 {[%emt 0:00:04]} 2. Nf3 {[%emt 0:00:14]} d5 {[%emt 0:00:05]} 3. e3 {[%emt 0:00:59]} Nf6 {[%emt 0:00:19]} 4. c4 {[%emt 0:00:06]} a6 {[%emt 0:01:43]} 5. b3 {[%emt 0:00:13]} dxc4 {[%emt 0:01:19]} 6. Bxc4 {[%emt 0:01:27]} Nbd7 {[%emt 0:00:20]} 7. O-O {[%emt 0:00:08]} c5 {[%emt 0:01:10]} 8. Bb2 {[%emt 0:00:15]} Be7 {[%emt 0:01:13]} 9. dxc5 {[%emt 0:00:40]} (9. Nbd2 {is more complex.} b6 10. Ng5 cxd4 11. Bxe6 O-O 12. Qf3) 9... Bxc5 {[%emt 0:00:09]} 10. Qe2 {[%emt 0:00:45]} O-O {[%emt 0:01:04]} 11. Nbd2 {[%emt 0:02:57] White is slightly better.} Qe7 {[%emt 0:00:55]} 12. Bd3 {[%emt 0:00:58]} Rd8 {[%emt 0:02:41]} 13. Rfd1 {[%emt 0:01:38]} b5 {[%emt 0:02:23]} 14. a4 {[%emt 0:00:21]} b4 {[%emt 0:01:06]} 15. Nc4 {[%emt 0:01:32]} Ra7 {[%emt 0:00:56] [#]} ({Better is} 15... a5 $1 $14) 16. Na5 $1 $36 {[%emt 0:00:22][%mdl 2048] Keeping Black busy. White is much more active.} Nb8 {[%emt 0:00:10] Repels Nc6} 17. Rac1 {[%emt 0:00:47][%cal Ba1c1,Bc1c5,Bc5c3][%mdl 32] Hoping for Be5.} Nd5 {[%emt 0:00:31] [#]} 18. Bxh7+ $1 {[%emt 0:01:36][%mdl 512]} Kxh7 {[%emt 0:00:11]} 19. Qc2+ {[%emt 0:00:02]} Kg8 {[%emt 0:00:06] aiming for ...Rc7.} 20. Qxc5 {[%emt 0:00:01]} Qxc5 {[%emt 0:00:09]} 21. Rxc5 {[%emt 0:00:02] e4 would now be deadly.} Rad7 {[%emt 0:00:06]} 22. Re1 {[%emt 0:01:16]} (22. Rdc1 $18 Ne7 23. Bd4) 22... Nc3 {[%emt 0:00:09] Loses the game.} (22... f6 $16 {was called for.} 23. Kf1 Bb7 24. Nxb7 Rxb7) 23. Bxc3 $18 {[%emt 0:00:11]} bxc3 {[%emt 0:00:02]} 24. Rxc3 {[%emt 0:00:01]} Rd5 {[%emt 0:00:03]} 25. Nc4 {[%emt 0:00:13] Black must now prevent Nb6.} Bb7 {[%emt 0:00:03] White is clearly better.} 26. Kf1 {[%emt 0:00:12]} Nc6 {[%emt 0:00:05]} 27. Nb6 {[%emt 0:00:13]} Rd3 {[%emt 0:00:10]} 28. Rxd3 {[%emt 0:00:02]} Rxd3 {[%emt 0:00:02]} 29. Rb1 {[%emt 0:00:05]} Nb4 {[%emt 0:00:07]} 30. Nc4 {[%emt 0:00:06]} (30. Ne1 $18 Rd8 31. h4) 30... Be4 {[%emt 0:00:06]} 31. Nfd2 {[%emt 0:00:07]} Bg6 {[%emt 0:00:13] Weighted Error Value: White=0.16 (very precise) /Black=0.20 (precise) .  Mistake:       	White=2     	Black=2      Inaccurate:     	White=1     	Black=1      OK:         	White=7     	Black=6      Best:        	White=2     	Black=1} 1-0